[Event "Titled Tuesday Blitz January 31 Late 2023"]
[White "Khoroshev, Nikita"]
[Black "Ortega Amarelle, Mariano"]
[WhiteFideId "14200287"]
[BlackFideId "3504301"]
[WhiteElo "2336"]
[BlackElo "2472"]
[Result "0-1"]
[Round "08"]
[TimeControl "180+2"]
[Date "2023.01.31"]
[WhiteClock "0:01:18"]
[BlackClock "0:01:01"]

1. e4 {[%clk 0:02:54]}  e5 {[%clk 0:02:57]} 2. Nf3 {[%clk 0:02:53]}  Nc6 {[%clk 0:02:57]} 3. Bb5 {[%clk 0:02:53]}  a6 {[%clk 0:02:56]} 4. Ba4 {[%clk 0:02:51]}  Nf6 {[%clk 0:02:55]} 5. Bxc6 {[%clk 0:02:51]}  dxc6 {[%clk 0:02:55]} 6. d3 {[%clk 0:02:52]}  Nd7 {[%clk 0:02:51]} 7. Nbd2 {[%clk 0:02:51]}  Bd6 {[%clk 0:02:50]} 8. Nc4 {[%clk 0:02:51]}  Qe7 {[%clk 0:02:47]} 9. a4 {[%clk 0:02:48]}  a5 {[%clk 0:02:46]} 10. O-O {[%clk 0:02:43]}  c5 {[%clk 0:02:45]} 11. c3 {[%clk 0:02:42]}  O-O {[%clk 0:02:42]} 12. Re1 {[%clk 0:02:42]}  Nb8 {[%clk 0:02:39]} 13. d4 {[%clk 0:02:42]}  cxd4 {[%clk 0:02:38]} 14. cxd4 {[%clk 0:02:42]}  Bb4 {[%clk 0:02:33]} 15. Bd2 {[%clk 0:02:40]}  exd4 {[%clk 0:02:33]} 16. Bxb4 {[%clk 0:02:23]}  Qxb4 {[%clk 0:02:31]} 17. Qxd4 {[%clk 0:02:23]}  Nc6 {[%clk 0:02:27]} 18. Qc3 {[%clk 0:02:23]}  Qxc3 {[%clk 0:02:17]} 19. bxc3 {[%clk 0:02:24]}  Be6 {[%clk 0:02:17]} 20. Na3 {[%clk 0:02:21]}  Rad8 {[%clk 0:02:07]} 21. Nb5 {[%clk 0:02:19]}  Rd7 {[%clk 0:02:07]} 22. Nfd4 {[%clk 0:02:19]}  Nxd4 {[%clk 0:02:02]} 23. Nxd4 {[%clk 0:02:18]}  Bc4 {[%clk 0:01:57]} 24. Rab1 {[%clk 0:02:08]}  b6 {[%clk 0:01:55]} 25. Nc6 {[%clk 0:02:03]}  Re8 {[%clk 0:01:43]} 26. f3 {[%clk 0:02:01]}  f6 {[%clk 0:01:34]} 27. Red1 {[%clk 0:01:56]}  Rxd1+ {[%clk 0:01:29]} 28. Rxd1 {[%clk 0:01:57]}  Bb3 {[%clk 0:01:29]} 29. Rd4 {[%clk 0:01:57]}  Re6 {[%clk 0:01:17]} 30. Na7 {[%clk 0:01:49]}  Rd6 {[%clk 0:01:12]} 31. Rxd6 {[%clk 0:01:43]}  cxd6 {[%clk 0:01:13]} 32. Nc8 {[%clk 0:01:44]}  Bxa4 {[%clk 0:01:13]} 33. Nxb6 {[%clk 0:01:40]}  Bb3 {[%clk 0:01:13]} 34. Kf2 {[%clk 0:01:17]}  a4 {[%clk 0:01:13]} 35. Nxa4 {[%clk 0:01:16]}  Bxa4 {[%clk 0:01:12]} 36. Ke3 {[%clk 0:01:16]}  Kf7 {[%clk 0:01:12]} 37. Kd4 {[%clk 0:01:16]}  Ke6 {[%clk 0:01:12]} 38. c4 {[%clk 0:01:17]}  Bc6 {[%clk 0:01:07]} 39. g3 {[%clk 0:01:16]}  f5 {[%clk 0:01:04]} 40. exf5+ {[%clk 0:01:15]}  Kxf5 {[%clk 0:01:04]} 41. f4 {[%clk 0:01:16]}  Kg4 {[%clk 0:01:02]} 42. c5 {[%clk 0:01:16]}  dxc5+ {[%clk 0:01:02]} 43. Kxc5 {[%clk 0:01:17]}  Be4 {[%clk 0:01:01]} 44. Kd6 {[%clk 0:01:18]} 0-1


[Site "https://www.chess.com"]

[Event "Titled Tuesday Blitz January 31 Late 2023"]
[White "Krysa, Leandro"]
[Black "Ibadov, Dashgyn"]
[WhiteFideId "116807"]
[BlackFideId "24107514"]
[WhiteElo "2541"]
[BlackElo "2391"]
[Result "1-0"]
[Round "08"]
[TimeControl "180+2"]
[Date "2023.01.31"]
[WhiteClock "0:00:20"]
[BlackClock "0:00:02"]

1. e4 {[%clk 0:03:00]}  e5 {[%clk 0:02:59]} 2. Nf3 {[%clk 0:03:00]}  Nc6 {[%clk 0:03:00]} 3. d4 {[%clk 0:03:00]}  exd4 {[%clk 0:03:00]} 4. Nxd4 {[%clk 0:03:00]}  Nf6 {[%clk 0:03:00]} 5. Nxc6 {[%clk 0:03:00]}  bxc6 {[%clk 0:03:00]} 6. e5 {[%clk 0:03:00]}  Qe7 {[%clk 0:03:00]} 7. Qe2 {[%clk 0:03:01]}  Nd5 {[%clk 0:03:01]} 8. Nd2 {[%clk 0:03:00]}  a5 {[%clk 0:02:54]} 9. c4 {[%clk 0:02:49]}  Nb6 {[%clk 0:02:55]} 10. b3 {[%clk 0:02:45]}  a4 {[%clk 0:02:55]} 11. Bb2 {[%clk 0:02:45]}  axb3 {[%clk 0:02:55]} 12. axb3 {[%clk 0:02:45]}  Rxa1+ {[%clk 0:02:56]} 13. Bxa1 {[%clk 0:02:46]}  Qa3 {[%clk 0:02:57]} 14. Qd1 {[%clk 0:02:46]}  Bb4 {[%clk 0:02:47]} 15. Bd3 {[%clk 0:02:40]}  Qa5 {[%clk 0:02:47]} 16. Ke2 {[%clk 0:02:19]}  O-O {[%clk 0:02:44]} 17. Qc2 {[%clk 0:02:15]}  h6 {[%clk 0:02:41]} 18. Rd1 {[%clk 0:02:08]}  d6 {[%clk 0:02:38]} 19. Kf1 {[%clk 0:01:36]}  dxe5 {[%clk 0:02:34]} 20. h3 {[%clk 0:01:36]}  f5 {[%clk 0:02:28]} 21. Qb2 {[%clk 0:01:21]}  Re8 {[%clk 0:02:28]} 22. Nf3 {[%clk 0:01:18]}  Bd6 {[%clk 0:02:17]} 23. Re1 {[%clk 0:01:09]}  Ba3 {[%clk 0:01:04]} 24. Rxe5 {[%clk 0:01:08]}  Bxb2 {[%clk 0:01:02]} 25. Rxa5 {[%clk 0:01:08]}  Bxa1 {[%clk 0:00:58]} 26. Rxa1 {[%clk 0:01:09]}  c5 {[%clk 0:00:54]} 27. Ra5 {[%clk 0:01:00]}  Nd7 {[%clk 0:00:19]} 28. Bxf5 {[%clk 0:00:57]}  Nf6 {[%clk 0:00:14]} 29. Bxc8 {[%clk 0:00:56]}  Rxc8 {[%clk 0:00:15]} 30. Rxc5 {[%clk 0:00:56]}  Rb8 {[%clk 0:00:16]} 31. Nd4 {[%clk 0:00:48]}  Ra8 {[%clk 0:00:11]} 32. Rxc7 {[%clk 0:00:45]}  Ne4 {[%clk 0:00:11]} 33. Ne6 {[%clk 0:00:40]}  Nd2+ {[%clk 0:00:06]} 34. Ke2 {[%clk 0:00:38]}  Nxb3 {[%clk 0:00:05]} 35. Rxg7+ {[%clk 0:00:37]}  Kh8 {[%clk 0:00:05]} 36. Re7 {[%clk 0:00:35]}  Ra6 {[%clk 0:00:02]} 37. Ke3 {[%clk 0:00:25]}  Ra5 {[%clk 0:00:02]} 38. f4 {[%clk 0:00:22]}  Ra3 {[%clk 0:00:02]} 39. g4 {[%clk 0:00:20]} 1-0


[Site "https://www.chess.com"]

[Event "Titled Tuesday Blitz January 31 Late 2023"]
[White "ArchibaldCerveza29"]
[Black "Tan, Zhongyi"]
[BlackFideId "8603642"]
[WhiteElo "2532"]
[BlackElo "2517"]
[Result "0-1"]
[Round "08"]
[TimeControl "180+2"]
[Date "2023.01.31"]
[WhiteClock "0:00:38"]
[BlackClock "0:01:21"]

1. e4 {[%clk 0:03:00]}  c5 {[%clk 0:02:59]} 2. Nf3 {[%clk 0:03:00]}  d6 {[%clk 0:02:59]} 3. d4 {[%clk 0:03:01]}  cxd4 {[%clk 0:03:00]} 4. Nxd4 {[%clk 0:03:02]}  Nf6 {[%clk 0:03:01]} 5. Nc3 {[%clk 0:03:02]}  g6 {[%clk 0:03:01]} 6. Be3 {[%clk 0:03:01]}  Bg7 {[%clk 0:03:02]} 7. f3 {[%clk 0:03:02]}  O-O {[%clk 0:03:02]} 8. Qd2 {[%clk 0:03:03]}  Nc6 {[%clk 0:03:02]} 9. O-O-O {[%clk 0:03:03]}  d5 {[%clk 0:03:03]} 10. Qe1 {[%clk 0:02:55]}  e5 {[%clk 0:03:02]} 11. Nxc6 {[%clk 0:02:54]}  bxc6 {[%clk 0:03:02]} 12. Bc5 {[%clk 0:02:55]}  Re8 {[%clk 0:03:01]} 13. Bc4 {[%clk 0:02:49]}  Be6 {[%clk 0:02:54]} 14. exd5 {[%clk 0:02:41]}  Nxd5 {[%clk 0:02:53]} 15. Ne4 {[%clk 0:02:39]}  Qc7 {[%clk 0:02:42]} 16. h4 {[%clk 0:02:32]}  Nf4 {[%clk 0:02:37]} 17. Bb3 {[%clk 0:02:27]}  Bd5 {[%clk 0:02:33]} 18. g3 {[%clk 0:02:21]}  Ne6 {[%clk 0:02:30]} 19. Bd6 {[%clk 0:02:18]}  Qb6 {[%clk 0:02:23]} 20. Bxd5 {[%clk 0:01:46]}  cxd5 {[%clk 0:02:23]} 21. Rxd5 {[%clk 0:01:46]}  Rac8 {[%clk 0:02:18]} 22. Kb1 {[%clk 0:01:42]}  f5 {[%clk 0:02:14]} 23. Ng5 {[%clk 0:01:35]}  e4 {[%clk 0:01:58]} 24. Ba3 {[%clk 0:00:56]}  Nxg5 {[%clk 0:01:27]} 25. hxg5 {[%clk 0:00:57]}  exf3 {[%clk 0:01:27]} 26. Qd2 {[%clk 0:00:54]}  Re2 {[%clk 0:01:23]} 27. Qd3 {[%clk 0:00:49]}  Rexc2 {[%clk 0:01:22]} 28. Rd1 {[%clk 0:00:40]}  Rxb2+ {[%clk 0:01:22]} 29. Ka1 {[%clk 0:00:38]}  Rb1# {[%clk 0:01:21]} 0-1


[Site "https://www.chess.com"]

[Event "Titled Tuesday Blitz January 31 Late 2023"]
[White "Gurevich, Dmitry"]
[Black "Gubajdullin, Alexei"]
[WhiteFideId "2000407"]
[BlackFideId "4141202"]
[WhiteElo "2393"]
[BlackElo "2285"]
[Result "0-1"]
[Round "08"]
[TimeControl "180+2"]
[Date "2023.01.31"]
[WhiteClock "0:00:47"]
[BlackClock "0:01:55"]

1. d4 {[%clk 0:03:00]}  Nf6 {[%clk 0:02:59]} 2. c4 {[%clk 0:03:00]}  g6 {[%clk 0:02:59]} 3. Nc3 {[%clk 0:02:59]}  Bg7 {[%clk 0:02:59]} 4. e4 {[%clk 0:03:00]}  d6 {[%clk 0:02:59]} 5. Nf3 {[%clk 0:03:00]}  O-O {[%clk 0:03:00]} 6. Be2 {[%clk 0:03:00]}  Na6 {[%clk 0:03:00]} 7. O-O {[%clk 0:02:59]}  e5 {[%clk 0:03:00]} 8. Be3 {[%clk 0:02:59]}  c6 {[%clk 0:03:00]} 9. d5 {[%clk 0:02:59]}  Ng4 {[%clk 0:03:00]} 10. Bg5 {[%clk 0:02:58]}  f6 {[%clk 0:03:01]} 11. Bd2 {[%clk 0:02:58]}  c5 {[%clk 0:03:01]} 12. g3 {[%clk 0:02:55]}  f5 {[%clk 0:02:58]} 13. Ng5 {[%clk 0:02:44]}  Nf6 {[%clk 0:02:56]} 14. Qb1 {[%clk 0:02:34]}  Nc7 {[%clk 0:02:53]} 15. f4 {[%clk 0:02:31]}  h6 {[%clk 0:02:50]} 16. fxe5 {[%clk 0:02:30]}  hxg5 {[%clk 0:02:50]} 17. exf6 {[%clk 0:02:29]}  Qxf6 {[%clk 0:02:50]} 18. Be3 {[%clk 0:02:18]}  Qe7 {[%clk 0:02:31]} 19. Bd3 {[%clk 0:02:09]}  f4 {[%clk 0:02:29]} 20. Bf2 {[%clk 0:01:59]}  Bh3 {[%clk 0:02:28]} 21. Re1 {[%clk 0:01:57]}  Bd4 {[%clk 0:02:08]} 22. Bxd4 {[%clk 0:01:43]}  cxd4 {[%clk 0:02:08]} 23. Nd1 {[%clk 0:00:58]}  fxg3 {[%clk 0:02:06]} 24. hxg3 {[%clk 0:00:53]}  Qe5 {[%clk 0:02:01]} 25. Kh2 {[%clk 0:00:51]}  Rf3 {[%clk 0:01:58]} 26. Rg1 {[%clk 0:00:47]}  Kg7 {[%clk 0:01:55]} 0-1


[Site "https://www.chess.com"]

[Event "Titled Tuesday Blitz January 31 Late 2023"]
[White "Vlassov, Nikolai"]
[Black "Jeet, Jain"]
[WhiteFideId "4103360"]
[BlackFideId "5073022"]
[WhiteElo "2283"]
[BlackElo "2199"]
[Result "1-0"]
[Round "08"]
[TimeControl "180+2"]
[Date "2023.01.31"]
[WhiteClock "0:00:12"]
[BlackClock "0:00:01"]

1. e4 {[%clk 0:03:00]}  c6 {[%clk 0:02:57]} 2. d4 {[%clk 0:03:00]}  g6 {[%clk 0:02:57]} 3. Nc3 {[%clk 0:02:59]}  d5 {[%clk 0:02:57]} 4. e5 {[%clk 0:02:58]}  Bg7 {[%clk 0:02:52]} 5. Bf4 {[%clk 0:02:58]}  h5 {[%clk 0:02:51]} 6. Qd2 {[%clk 0:02:51]}  Nh6 {[%clk 0:02:50]} 7. O-O-O {[%clk 0:02:50]}  Bf5 {[%clk 0:02:45]} 8. h3 {[%clk 0:02:45]}  a5 {[%clk 0:02:27]} 9. Nf3 {[%clk 0:02:44]}  a4 {[%clk 0:02:25]} 10. a3 {[%clk 0:02:33]}  b5 {[%clk 0:02:23]} 11. Na2 {[%clk 0:02:24]}  Na6 {[%clk 0:02:21]} 12. Ne1 {[%clk 0:02:20]}  Rc8 {[%clk 0:02:16]} 13. Nd3 {[%clk 0:02:16]}  Bxd3 {[%clk 0:02:12]} 14. Bxd3 {[%clk 0:02:15]}  e6 {[%clk 0:02:09]} 15. Bg5 {[%clk 0:02:07]}  Qb6 {[%clk 0:02:05]} 16. c3 {[%clk 0:02:07]}  c5 {[%clk 0:02:00]} 17. Kb1 {[%clk 0:02:04]}  c4 {[%clk 0:01:46]} 18. Bc2 {[%clk 0:02:02]}  Ng8 {[%clk 0:01:39]} 19. g4 {[%clk 0:01:59]}  Qc7 {[%clk 0:01:27]} 20. f4 {[%clk 0:01:54]}  Kd7 {[%clk 0:01:06]} 21. f5 {[%clk 0:01:53]}  gxf5 {[%clk 0:01:07]} 22. gxf5 {[%clk 0:01:53]}  Kc6 {[%clk 0:01:07]} 23. Nc1 {[%clk 0:01:46]}  Bh6 {[%clk 0:01:04]} 24. Ne2 {[%clk 0:01:45]}  Kb6 {[%clk 0:00:57]} 25. Rhg1 {[%clk 0:01:42]}  Nb8 {[%clk 0:00:55]} 26. Nf4 {[%clk 0:01:37]}  Bxg5 {[%clk 0:00:51]} 27. Rxg5 {[%clk 0:01:36]}  Qe7 {[%clk 0:00:51]} 28. fxe6 {[%clk 0:01:27]}  fxe6 {[%clk 0:00:41]} 29. Rg6 {[%clk 0:01:27]}  Nc6 {[%clk 0:00:32]} 30. Rxe6 {[%clk 0:01:23]}  Qf7 {[%clk 0:00:28]} 31. Nxd5+ {[%clk 0:01:14]}  Ka5 {[%clk 0:00:28]} 32. Rd6 {[%clk 0:01:08]}  Nge7 {[%clk 0:00:21]} 33. Nb4 {[%clk 0:01:02]}  Rhg8 {[%clk 0:00:19]} 34. d5 {[%clk 0:00:56]}  Nb8 {[%clk 0:00:19]} 35. Qd4 {[%clk 0:00:49]}  Nxd5 {[%clk 0:00:15]} 36. Nxd5 {[%clk 0:00:44]}  Qb7 {[%clk 0:00:15]} 37. e6 {[%clk 0:00:40]}  Nc6 {[%clk 0:00:14]} 38. Qc5 {[%clk 0:00:39]}  Rge8 {[%clk 0:00:13]} 39. Nb4 {[%clk 0:00:32]}  Nb8 {[%clk 0:00:09]} 40. Rd7 {[%clk 0:00:26]}  Rxc5 {[%clk 0:00:07]} 41. Rxb7 {[%clk 0:00:24]}  Re5 {[%clk 0:00:05]} 42. Rd6 {[%clk 0:00:20]}  R5xe6 {[%clk 0:00:04]} 43. Rxe6 {[%clk 0:00:18]}  Rxe6 {[%clk 0:00:05]} 44. Rxb8 {[%clk 0:00:18]}  h4 {[%clk 0:00:06]} 45. Rh8 {[%clk 0:00:16]}  Rf6 {[%clk 0:00:03]} 46. Rxh4 {[%clk 0:00:16]}  Re6 {[%clk 0:00:04]} 47. Rh5 {[%clk 0:00:16]}  Rf6 {[%clk 0:00:04]} 48. h4 {[%clk 0:00:16]}  Re6 {[%clk 0:00:04]} 49. Rg5 {[%clk 0:00:16]}  Rd6 {[%clk 0:00:04]} 50. h5 {[%clk 0:00:17]}  Re6 {[%clk 0:00:05]} 51. Ka2 {[%clk 0:00:17]}  Re1 {[%clk 0:00:05]} 52. h6 {[%clk 0:00:16]}  Rh1 {[%clk 0:00:05]} 53. h7 {[%clk 0:00:16]}  Rh2 {[%clk 0:00:04]} 54. Rg8 {[%clk 0:00:16]}  Rh3 {[%clk 0:00:01]} 55. h8=Q {[%clk 0:00:12]} 1-0


[Site "https://www.chess.com"]

[Event "Titled Tuesday Blitz January 31 Late 2023"]
[White "Oro, Faustino"]
[Black "Carbone, Diego"]
[WhiteFideId "20000197"]
[BlackFideId "3002179"]
[WhiteElo "2269"]
[BlackElo "2336"]
[Result "1-0"]
[Round "08"]
[TimeControl "180+2"]
[Date "2023.01.31"]
[WhiteClock "0:01:51"]
[BlackClock "0:00:21"]

1. e4 {[%clk 0:03:00]}  e5 {[%clk 0:02:59]} 2. Nf3 {[%clk 0:03:01]}  Nc6 {[%clk 0:02:59]} 3. Bb5 {[%clk 0:03:00]}  a6 {[%clk 0:02:59]} 4. Ba4 {[%clk 0:03:00]}  Nf6 {[%clk 0:02:59]} 5. O-O {[%clk 0:03:00]}  Nxe4 {[%clk 0:02:59]} 6. d4 {[%clk 0:02:58]}  Be7 {[%clk 0:02:59]} 7. Re1 {[%clk 0:02:54]}  b5 {[%clk 0:02:58]} 8. Bb3 {[%clk 0:02:51]}  d5 {[%clk 0:02:58]} 9. dxe5 {[%clk 0:02:52]}  Be6 {[%clk 0:02:59]} 10. c3 {[%clk 0:02:51]}  O-O {[%clk 0:02:57]} 11. Nbd2 {[%clk 0:02:50]}  Nc5 {[%clk 0:02:55]} 12. Bc2 {[%clk 0:02:50]}  d4 {[%clk 0:02:55]} 13. Nb3 {[%clk 0:02:39]}  dxc3 {[%clk 0:02:48]} 14. bxc3 {[%clk 0:02:34]}  Na4 {[%clk 0:02:47]} 15. Bd2 {[%clk 0:02:34]}  Ba3 {[%clk 0:02:16]} 16. Nfd4 {[%clk 0:02:29]}  Nxd4 {[%clk 0:02:06]} 17. Nxd4 {[%clk 0:02:23]}  Nb2 {[%clk 0:01:51]} 18. Qh5 {[%clk 0:02:21]}  g6 {[%clk 0:01:33]} 19. Qh6 {[%clk 0:02:21]}  Nc4 {[%clk 0:01:22]} 20. Bf4 {[%clk 0:02:10]}  Be7 {[%clk 0:00:49]} 21. Nc6 {[%clk 0:02:08]}  Qe8 {[%clk 0:00:43]} 22. Nxe7+ {[%clk 0:02:08]}  Qxe7 {[%clk 0:00:44]} 23. Bg5 {[%clk 0:02:09]}  f6 {[%clk 0:00:44]} 24. Bxf6 {[%clk 0:02:08]}  Qf7 {[%clk 0:00:44]} 25. Rad1 {[%clk 0:01:58]}  Rae8 {[%clk 0:00:43]} 26. f4 {[%clk 0:01:56]}  Nb6 {[%clk 0:00:43]} 27. f5 {[%clk 0:01:51]}  Bxf5 {[%clk 0:00:20]} 28. Bxf5 {[%clk 0:01:51]}  gxf5 {[%clk 0:00:21]} 29. Re3 {[%clk 0:01:51]} 1-0


[Site "https://www.chess.com"]

[Event "Titled Tuesday Blitz January 31 Late 2023"]
[White "Bambino Filho, Antonio Carlos"]
[Black "Koellner, Ruben Gideon"]
[WhiteFideId "2113163"]
[BlackFideId "12993093"]
[WhiteElo "2144"]
[BlackElo "2426"]
[Result "0-1"]
[Round "08"]
[TimeControl "180+2"]
[Date "2023.01.31"]
[WhiteClock "0:00:15"]
[BlackClock "0:00:49"]

1. d4 {[%clk 0:02:54]}  d6 {[%clk 0:03:00]} 2. e4 {[%clk 0:02:54]}  Nf6 {[%clk 0:02:59]} 3. Nc3 {[%clk 0:02:54]}  e5 {[%clk 0:03:00]} 4. Nf3 {[%clk 0:02:54]}  Nbd7 {[%clk 0:03:01]} 5. Be2 {[%clk 0:02:54]}  Be7 {[%clk 0:03:01]} 6. O-O {[%clk 0:02:55]}  c6 {[%clk 0:03:01]} 7. a4 {[%clk 0:02:54]}  h6 {[%clk 0:03:02]} 8. Re1 {[%clk 0:02:54]}  Qc7 {[%clk 0:03:02]} 9. Bf1 {[%clk 0:02:52]}  Nf8 {[%clk 0:02:59]} 10. h3 {[%clk 0:02:45]}  g5 {[%clk 0:02:58]} 11. Nh2 {[%clk 0:02:32]}  Ng6 {[%clk 0:02:57]} 12. d5 {[%clk 0:02:27]}  cxd5 {[%clk 0:02:53]} 13. Bb5+ {[%clk 0:02:18]}  Kf8 {[%clk 0:02:51]} 14. Nxd5 {[%clk 0:02:06]}  Nxd5 {[%clk 0:02:51]} 15. exd5 {[%clk 0:02:07]}  Kg7 {[%clk 0:02:50]} 16. Qh5 {[%clk 0:01:40]}  f5 {[%clk 0:02:44]} 17. g4 {[%clk 0:01:31]}  Qxc2 {[%clk 0:02:29]} 18. Be3 {[%clk 0:01:26]}  a6 {[%clk 0:01:58]} 19. Rac1 {[%clk 0:01:24]}  Qxb2 {[%clk 0:01:58]} 20. Bd3 {[%clk 0:01:17]}  e4 {[%clk 0:01:58]} 21. Rc7 {[%clk 0:01:03]}  Qf6 {[%clk 0:01:34]} 22. gxf5 {[%clk 0:00:46]}  Bxf5 {[%clk 0:01:35]} 23. Ng4 {[%clk 0:00:26]}  Bxg4 {[%clk 0:01:27]} 24. hxg4 {[%clk 0:00:27]}  exd3 {[%clk 0:01:07]} 25. Rxe7+ {[%clk 0:00:27]}  Qxe7 {[%clk 0:01:02]} 26. Bd4+ {[%clk 0:00:24]}  Ne5 {[%clk 0:01:02]} 27. f4 {[%clk 0:00:16]}  d2 {[%clk 0:00:54]} 28. Rf1 {[%clk 0:00:15]}  gxf4 {[%clk 0:00:49]} 0-1


[Site "https://www.chess.com"]

[Event "Titled Tuesday Blitz January 31 Late 2023"]
[White "Vovk, Orest"]
[Black "Kourkoulos-Arditis, Stamatis"]
[WhiteFideId "14113490"]
[BlackFideId "4221990"]
[WhiteElo "2315"]
[BlackElo "2539"]
[Result "1-0"]
[Round "08"]
[TimeControl "180+2"]
[Date "2023.01.31"]
[WhiteClock "0:00:15"]
[BlackClock "0:00:02"]

1. h3 {[%clk 0:02:19]}  e5 {[%clk 0:02:54]} 2. d4 {[%clk 0:02:16]}  exd4 {[%clk 0:02:51]} 3. Qxd4 {[%clk 0:02:14]}  Nc6 {[%clk 0:02:51]} 4. Qa4 {[%clk 0:02:12]}  Bc5 {[%clk 0:02:47]} 5. Nc3 {[%clk 0:02:07]}  d6 {[%clk 0:02:45]} 6. Nf3 {[%clk 0:02:02]}  Bd7 {[%clk 0:02:43]} 7. Qe4+ {[%clk 0:02:00]}  Nge7 {[%clk 0:02:43]} 8. Qh4 {[%clk 0:01:38]}  Ng6 {[%clk 0:02:25]} 9. Qxd8+ {[%clk 0:01:31]}  Rxd8 {[%clk 0:02:26]} 10. Nd5 {[%clk 0:01:29]}  Rc8 {[%clk 0:02:24]} 11. Bd2 {[%clk 0:01:25]}  Nge7 {[%clk 0:02:01]} 12. Nxe7 {[%clk 0:01:22]}  Kxe7 {[%clk 0:02:01]} 13. e3 {[%clk 0:01:23]}  Rhe8 {[%clk 0:02:00]} 14. Bc3 {[%clk 0:01:21]}  Kf8 {[%clk 0:02:00]} 15. O-O-O {[%clk 0:01:21]}  a6 {[%clk 0:01:52]} 16. Bd3 {[%clk 0:01:20]}  Kg8 {[%clk 0:01:45]} 17. Nd4 {[%clk 0:01:16]}  Ne5 {[%clk 0:01:38]} 18. Be2 {[%clk 0:01:16]}  b5 {[%clk 0:01:38]} 19. Nf3 {[%clk 0:01:15]}  Nxf3 {[%clk 0:01:26]} 20. Bxf3 {[%clk 0:01:15]}  b4 {[%clk 0:01:06]} 21. Bd4 {[%clk 0:01:15]}  Bxd4 {[%clk 0:01:07]} 22. Rxd4 {[%clk 0:01:16]}  a5 {[%clk 0:01:07]} 23. Rhd1 {[%clk 0:01:11]}  Re5 {[%clk 0:01:07]} 24. Rd5 {[%clk 0:01:08]}  Rce8 {[%clk 0:01:05]} 25. Rxe5 {[%clk 0:01:07]}  Rxe5 {[%clk 0:01:06]} 26. Rd5 {[%clk 0:01:07]}  Rxd5 {[%clk 0:00:58]} 27. Bxd5 {[%clk 0:01:08]}  c6 {[%clk 0:00:58]} 28. Be4 {[%clk 0:01:03]}  f5 {[%clk 0:00:58]} 29. Bf3 {[%clk 0:01:01]}  Kf7 {[%clk 0:00:59]} 30. Kd2 {[%clk 0:01:01]}  g5 {[%clk 0:00:59]} 31. c3 {[%clk 0:01:00]}  c5 {[%clk 0:00:49]} 32. cxb4 {[%clk 0:00:59]}  axb4 {[%clk 0:00:41]} 33. a3 {[%clk 0:00:59]}  Kf6 {[%clk 0:00:25]} 34. axb4 {[%clk 0:00:56]}  cxb4 {[%clk 0:00:24]} 35. Kd3 {[%clk 0:00:57]}  g4 {[%clk 0:00:20]} 36. hxg4 {[%clk 0:00:55]}  fxg4 {[%clk 0:00:21]} 37. Be4 {[%clk 0:00:52]}  h5 {[%clk 0:00:20]} 38. g3 {[%clk 0:00:52]}  Ke5 {[%clk 0:00:18]} 39. Bg6 {[%clk 0:00:50]}  Bb5+ {[%clk 0:00:05]} 40. Kd2 {[%clk 0:00:44]}  Bd7 {[%clk 0:00:02]} 41. Bxh5 {[%clk 0:00:43]}  Bf5 {[%clk 0:00:03]} 42. Be8 {[%clk 0:00:40]}  d5 {[%clk 0:00:03]} 43. Bc6 {[%clk 0:00:39]}  d4 {[%clk 0:00:03]} 44. f4+ {[%clk 0:00:28]}  gxf3 {[%clk 0:00:03]} 45. Bxf3 {[%clk 0:00:28]}  Bg6 {[%clk 0:00:03]} 46. Be2 {[%clk 0:00:25]}  dxe3+ {[%clk 0:00:03]} 47. Kxe3 {[%clk 0:00:25]}  Be4 {[%clk 0:00:03]} 48. Bd3 {[%clk 0:00:23]}  Bd5 {[%clk 0:00:02]} 49. g4 {[%clk 0:00:23]}  Be6 {[%clk 0:00:03]} 50. g5 {[%clk 0:00:23]}  Bg8 {[%clk 0:00:01]} 51. g6 {[%clk 0:00:22]}  Kf6 {[%clk 0:00:02]} 52. Kd4 {[%clk 0:00:21]}  b3 {[%clk 0:00:02]} 53. Bc4 {[%clk 0:00:15]} 1-0


[Site "https://www.chess.com"]